[Event "Titled Tuesday Blitz April 12 Early 2022"]
[White "Agasarov, Benik"]
[Black "Jakubowska, Anna"]
[WhiteFideId "13314823"]
[BlackFideId "1121952"]
[WhiteElo "2527"]
[BlackElo "1924"]
[Result "0-1"]
[Round "07"]
[TimeControl "180+1"]
[Date "2022.04.13"]
[WhiteClock "0:00:08"]
[BlackClock "0:00:07"]

1. d4 {[%clk 0:03:00]}  d5 {[%clk 0:02:56]} 2. Bf4 {[%clk 0:02:59]}  Nf6 {[%clk 0:02:56]} 3. e3 {[%clk 0:02:57]}  c5 {[%clk 0:02:52]} 4. c3 {[%clk 0:02:51]}  Nc6 {[%clk 0:02:49]} 5. Nf3 {[%clk 0:02:47]}  Bg4 {[%clk 0:02:49]} 6. Be2 {[%clk 0:02:37]}  Bxf3 {[%clk 0:02:47]} 7. Bxf3 {[%clk 0:02:37]}  e6 {[%clk 0:02:48]} 8. O-O {[%clk 0:02:37]}  Be7 {[%clk 0:02:46]} 9. a4 {[%clk 0:02:36]}  O-O {[%clk 0:02:43]} 10. Na3 {[%clk 0:02:35]}  Rc8 {[%clk 0:02:35]} 11. Nc2 {[%clk 0:02:28]}  cxd4 {[%clk 0:02:29]} 12. exd4 {[%clk 0:02:26]}  Ne4 {[%clk 0:02:26]} 13. Nb4 {[%clk 0:02:27]}  Nxb4 {[%clk 0:02:16]} 14. cxb4 {[%clk 0:02:25]}  Bxb4 {[%clk 0:02:16]} 15. Qd3 {[%clk 0:02:06]}  Nd6 {[%clk 0:01:58]} 16. Rfc1 {[%clk 0:01:56]}  Qf6 {[%clk 0:01:41]} 17. Be5 {[%clk 0:01:53]}  Qg6 {[%clk 0:01:35]} 18. Qxg6 {[%clk 0:01:52]}  hxg6 {[%clk 0:01:34]} 19. b3 {[%clk 0:01:53]}  Nf5 {[%clk 0:01:28]} 20. g4 {[%clk 0:01:51]}  Ne7 {[%clk 0:01:19]} 21. a5 {[%clk 0:01:28]}  Nc6 {[%clk 0:01:17]} 22. a6 {[%clk 0:01:27]}  b6 {[%clk 0:01:13]} 23. Kg2 {[%clk 0:00:50]}  Nxe5 {[%clk 0:01:11]} 24. dxe5 {[%clk 0:00:51]}  Bc3 {[%clk 0:01:11]} 25. Ra2 {[%clk 0:00:51]}  Bxe5 {[%clk 0:01:11]} 26. Rac2 {[%clk 0:00:52]}  Rxc2 {[%clk 0:01:06]} 27. Rxc2 {[%clk 0:00:53]}  Rd8 {[%clk 0:01:04]} 28. Be2 {[%clk 0:00:52]}  f5 {[%clk 0:00:59]} 29. Bd3 {[%clk 0:00:51]}  Kf7 {[%clk 0:00:56]} 30. Kf3 {[%clk 0:00:50]}  Bxh2 {[%clk 0:00:52]} 31. Rc6 {[%clk 0:00:46]}  Bd6 {[%clk 0:00:50]} 32. Bb1 {[%clk 0:00:41]}  Kf6 {[%clk 0:00:49]} 33. b4 {[%clk 0:00:36]}  e5 {[%clk 0:00:49]} 34. b5 {[%clk 0:00:35]}  e4+ {[%clk 0:00:48]} 35. Ke2 {[%clk 0:00:36]}  Ke5 {[%clk 0:00:47]} 36. f3 {[%clk 0:00:34]}  Rd7 {[%clk 0:00:38]} 37. gxf5 {[%clk 0:00:32]}  gxf5 {[%clk 0:00:37]} 38. Rc8 {[%clk 0:00:31]}  Rc7 {[%clk 0:00:36]} 39. Re8+ {[%clk 0:00:29]}  Kd4 {[%clk 0:00:36]} 40. fxe4 {[%clk 0:00:29]}  dxe4 {[%clk 0:00:30]} 41. Rd8 {[%clk 0:00:28]}  Kc5 {[%clk 0:00:29]} 42. Bc2 {[%clk 0:00:27]}  Kxb5 {[%clk 0:00:20]} 43. Bb3 {[%clk 0:00:20]}  Kc5 {[%clk 0:00:19]} 44. Be6 {[%clk 0:00:18]}  f4 {[%clk 0:00:18]} 45. Rh8 {[%clk 0:00:16]}  Re7 {[%clk 0:00:18]} 46. Rh5+ {[%clk 0:00:15]}  Kb4 {[%clk 0:00:17]} 47. Bf5 {[%clk 0:00:10]}  Bc5 {[%clk 0:00:17]} 48. Rh4 {[%clk 0:00:10]}  f3+ {[%clk 0:00:17]} 49. Kf1 {[%clk 0:00:10]}  Kb5 {[%clk 0:00:15]} 50. Bxe4 {[%clk 0:00:11]}  Kxa6 {[%clk 0:00:15]} 51. Bxf3 {[%clk 0:00:11]}  Kb5 {[%clk 0:00:15]} 52. Be2+ {[%clk 0:00:11]}  Kc6 {[%clk 0:00:14]} 53. Bf3+ {[%clk 0:00:11]}  Kd6 {[%clk 0:00:14]} 54. Rh2 {[%clk 0:00:09]}  a5 {[%clk 0:00:14]} 55. Rd2+ {[%clk 0:00:10]}  Ke5 {[%clk 0:00:14]} 56. Re2+ {[%clk 0:00:10]}  Kd4 {[%clk 0:00:14]} 57. Rd2+ {[%clk 0:00:10]}  Kc3 {[%clk 0:00:14]} 58. Rd1 {[%clk 0:00:08]}  a4 {[%clk 0:00:14]} 59. Be2 {[%clk 0:00:09]}  a3 {[%clk 0:00:14]} 60. Rd3+ {[%clk 0:00:09]}  Kb4 {[%clk 0:00:14]} 61. Rd2 {[%clk 0:00:08]}  a2 {[%clk 0:00:14]} 62. Rxa2 {[%clk 0:00:08]}  Kc3 {[%clk 0:00:13]} 63. Ra1 {[%clk 0:00:08]}  Rf7+ {[%clk 0:00:12]} 64. Ke1 {[%clk 0:00:08]}  g5 {[%clk 0:00:12]} 65. Rc1+ {[%clk 0:00:08]}  Kd4 {[%clk 0:00:13]} 66. Rc4+ {[%clk 0:00:08]}  Kd5 {[%clk 0:00:13]} 67. Rg4 {[%clk 0:00:09]}  Rf5 {[%clk 0:00:12]} 68. Bc4+ {[%clk 0:00:09]}  Kc6 {[%clk 0:00:12]} 69. Bd3 {[%clk 0:00:10]}  Re5+ {[%clk 0:00:12]} 70. Be4+ {[%clk 0:00:10]}  Kb5 {[%clk 0:00:11]} 71. Kd2 {[%clk 0:00:10]}  Ka5 {[%clk 0:00:11]} 72. Bd3 {[%clk 0:00:11]}  b5 {[%clk 0:00:10]} 73. Rg1 {[%clk 0:00:11]}  Bb4+ {[%clk 0:00:10]} 74. Kc2 {[%clk 0:00:11]}  Rc5+ {[%clk 0:00:10]} 75. Kb2 {[%clk 0:00:12]}  Bc3+ {[%clk 0:00:10]} 76. Kb3 {[%clk 0:00:12]}  b4 {[%clk 0:00:08]} 77. Bc4 {[%clk 0:00:11]}  Kb6 {[%clk 0:00:08]} 78. Rh1 {[%clk 0:00:11]}  Kc7 {[%clk 0:00:08]} 79. Rh7+ {[%clk 0:00:11]}  Kd6 {[%clk 0:00:07]} 80. Rh6+ {[%clk 0:00:12]}  Ke5 {[%clk 0:00:08]} 81. Re6+ {[%clk 0:00:12]}  Kf4 {[%clk 0:00:08]} 82. Rf6+ {[%clk 0:00:13]}  Rf5 {[%clk 0:00:08]} 83. Rg6 {[%clk 0:00:12]}  g4 {[%clk 0:00:08]} 84. Be6 {[%clk 0:00:12]}  Rg5 {[%clk 0:00:08]} 85. Rh6 {[%clk 0:00:11]}  g3 {[%clk 0:00:08]} 86. Rh4+ {[%clk 0:00:11]}  Ke3 {[%clk 0:00:08]} 87. Rh3 {[%clk 0:00:09]}  Kf2 {[%clk 0:00:08]} 88. Bd5 {[%clk 0:00:08]}  g2 {[%clk 0:00:08]} 89. Rf3+ {[%clk 0:00:08]}  Ke2 {[%clk 0:00:06]} 90. Rf5 {[%clk 0:00:01]}  Rxf5 {[%clk 0:00:05]} 91. Bxg2 {[%clk 0:00:02]}  Rf2 {[%clk 0:00:05]} 92. Bd5 {[%clk 0:00:03]}  Kd3 {[%clk 0:00:05]} 93. Bc4+ {[%clk 0:00:04]}  Kd4 {[%clk 0:00:05]} 94. Ba6 {[%clk 0:00:04]}  Rb2+ {[%clk 0:00:06]} 95. Ka4 {[%clk 0:00:05]}  Ra2+ {[%clk 0:00:06]} 96. Kb5 {[%clk 0:00:06]}  Rxa6 {[%clk 0:00:07]} 97. Kxa6 {[%clk 0:00:07]}  b3 {[%clk 0:00:07]} 98. Kb5 {[%clk 0:00:07]}  b2 {[%clk 0:00:08]} 99. Ka4 {[%clk 0:00:08]}  b1=Q {[%clk 0:00:06]} 100. Ka3 {[%clk 0:00:08]}  Qb4+ {[%clk 0:00:06]} 101. Ka2 {[%clk 0:00:08]}  Qb2# {[%clk 0:00:07]} 0-1


[Site "https://www.chess.com"]

[Event "Titled Tuesday Blitz April 12 Early 2022"]
[White "Andreikin, Dmitry"]
[Black "Taspinar, Yanki"]
[WhiteFideId "4158814"]
[BlackFideId "34561188"]
[WhiteElo "2736"]
[BlackElo "1518"]
[Result "1-0"]
[Round "07"]
[TimeControl "180+1"]
[Date "2022.04.12"]
[WhiteClock "0:02:03"]
[BlackClock "0:01:03"]

1. e4 {[%clk 0:03:00]}  e5 {[%clk 0:02:59]} 2. Nf3 {[%clk 0:02:59]}  Nc6 {[%clk 0:02:59]} 3. Bb5 {[%clk 0:02:57]}  a6 {[%clk 0:02:59]} 4. Ba4 {[%clk 0:02:56]}  Nf6 {[%clk 0:03:00]} 5. O-O {[%clk 0:02:56]}  Be7 {[%clk 0:03:00]} 6. Bxc6 {[%clk 0:02:55]}  dxc6 {[%clk 0:03:00]} 7. d3 {[%clk 0:02:55]}  Nd7 {[%clk 0:03:00]} 8. Nbd2 {[%clk 0:02:54]}  O-O {[%clk 0:03:00]} 9. Nc4 {[%clk 0:02:54]}  Bd6 {[%clk 0:03:00]} 10. b3 {[%clk 0:02:51]}  b5 {[%clk 0:02:57]} 11. Ne3 {[%clk 0:02:50]}  c5 {[%clk 0:02:51]} 12. a4 {[%clk 0:02:46]}  Bb7 {[%clk 0:02:49]} 13. Nf5 {[%clk 0:02:44]}  Re8 {[%clk 0:02:44]} 14. Ng5 {[%clk 0:02:39]}  h6 {[%clk 0:02:31]} 15. Nxf7 {[%clk 0:02:16]}  Kxf7 {[%clk 0:02:30]} 16. Qh5+ {[%clk 0:02:16]}  Kg8 {[%clk 0:02:25]} 17. Bxh6 {[%clk 0:02:03]}  Bf8 {[%clk 0:02:13]} 18. Bg5 {[%clk 0:02:03]}  Nf6 {[%clk 0:01:39]} 19. Qg6 {[%clk 0:02:03]}  Qd7 {[%clk 0:01:21]} 20. Bxf6 {[%clk 0:02:02]}  Re6 {[%clk 0:01:21]} 21. Nh6+ {[%clk 0:02:01]}  Kh8 {[%clk 0:01:22]} 22. Nf7+ {[%clk 0:02:02]}  Kg8 {[%clk 0:01:21]} 23. Ng5 {[%clk 0:02:03]}  Bd6 {[%clk 0:01:04]} 24. Qh7+ {[%clk 0:02:02]}  Kf8 {[%clk 0:01:03]} 25. Qh8# {[%clk 0:02:03]} 1-0


[Site "https://www.chess.com"]

[Event "Titled Tuesday Blitz April 12 Early 2022"]
[White "Avazkhonov, Alikhon"]
[Black "Skliarov, Viktor"]
[WhiteFideId "14208504"]
[BlackFideId "14106736"]
[WhiteElo "1739"]
[BlackElo "2229"]
[Result "0-1"]
[Round "07"]
[TimeControl "180+1"]
[Date "2022.04.13"]
[WhiteClock "0:00:02"]
[BlackClock "0:00:31"]

1. f4 {[%clk 0:03:00]}  e5 {[%clk 0:02:53]} 2. fxe5 {[%clk 0:03:01]}  d6 {[%clk 0:02:53]} 3. exd6 {[%clk 0:03:02]}  Bxd6 {[%clk 0:02:54]} 4. Nf3 {[%clk 0:03:02]}  g5 {[%clk 0:02:54]} 5. g3 {[%clk 0:03:03]}  g4 {[%clk 0:02:45]} 6. Nh4 {[%clk 0:03:03]}  Ne7 {[%clk 0:02:45]} 7. Nc3 {[%clk 0:03:03]}  Ng6 {[%clk 0:02:44]} 8. Nxg6 {[%clk 0:03:03]}  hxg6 {[%clk 0:02:42]} 9. Ne4 {[%clk 0:03:04]}  f5 {[%clk 0:02:37]} 10. Nxd6+ {[%clk 0:03:03]}  Qxd6 {[%clk 0:02:38]} 11. d3 {[%clk 0:02:57]}  Qc6 {[%clk 0:02:16]} 12. e4 {[%clk 0:02:57]}  fxe4 {[%clk 0:02:16]} 13. Bg2 {[%clk 0:02:55]}  Bf5 {[%clk 0:02:11]} 14. dxe4 {[%clk 0:02:55]}  Nd7 {[%clk 0:01:46]} 15. Bg5 {[%clk 0:02:35]}  Nc5 {[%clk 0:01:18]} 16. Qd4 {[%clk 0:02:16]}  O-O {[%clk 0:00:54]} 17. Bd2 {[%clk 0:00:19]}  Rad8 {[%clk 0:00:46]} 18. Qc4+ {[%clk 0:00:16]}  Be6 {[%clk 0:00:40]} 19. Qe2 {[%clk 0:00:16]}  Qb6 {[%clk 0:00:34]} 20. O-O-O {[%clk 0:00:11]}  Na4 {[%clk 0:00:35]} 21. b3 {[%clk 0:00:10]}  Qd4 {[%clk 0:00:35]} 22. c3 {[%clk 0:00:02]}  Nxc3 {[%clk 0:00:35]} 23. Bxc3 {[%clk 0:00:01]}  Qxc3+ {[%clk 0:00:35]} 24. Qc2 {[%clk 0:00:01]}  Qxc2+ {[%clk 0:00:35]} 25. Kxc2 {[%clk 0:00:01]}  Rf2+ {[%clk 0:00:36]} 26. Kc3 {[%clk 0:00:01]}  Rxd1 {[%clk 0:00:35]} 27. Rxd1 {[%clk 0:00:02]}  Rxg2 {[%clk 0:00:36]} 28. Rd8+ {[%clk 0:00:02]}  Kf7 {[%clk 0:00:36]} 29. Rb8 {[%clk 0:00:02]}  b6 {[%clk 0:00:31]} 0-1


[Site "https://www.chess.com"]

[Event "Titled Tuesday Blitz April 12 Early 2022"]
[White "Barria Zuniga, Daniel"]
[Black "Fernandez Siles, Luis"]
[WhiteFideId "3400816"]
[BlackFideId "2209420"]
[WhiteElo "2414"]
[BlackElo "2212"]
[Result "1-0"]
[Round "07"]
[TimeControl "180+1"]
[Date "2022.04.13"]
[WhiteClock "0:00:54"]
[BlackClock "0:00:02"]

1. d4 {[%clk 0:02:47]}  Nf6 {[%clk 0:02:55]} 2. c4 {[%clk 0:02:46]}  g6 {[%clk 0:02:55]} 3. Nc3 {[%clk 0:02:45]}  Bg7 {[%clk 0:02:55]} 4. e4 {[%clk 0:02:46]}  d6 {[%clk 0:02:56]} 5. Be2 {[%clk 0:02:46]}  O-O {[%clk 0:02:56]} 6. Nf3 {[%clk 0:02:47]}  c5 {[%clk 0:02:56]} 7. d5 {[%clk 0:02:46]}  e6 {[%clk 0:02:55]} 8. Nd2 {[%clk 0:02:46]}  Na6 {[%clk 0:02:50]} 9. O-O {[%clk 0:02:45]}  Nc7 {[%clk 0:02:50]} 10. dxe6 {[%clk 0:02:41]}  Nxe6 {[%clk 0:02:38]} 11. Nb3 {[%clk 0:02:42]}  Ne8 {[%clk 0:02:32]} 12. Be3 {[%clk 0:02:40]}  f5 {[%clk 0:02:24]} 13. exf5 {[%clk 0:02:38]}  gxf5 {[%clk 0:02:25]} 14. f4 {[%clk 0:02:38]}  Bd7 {[%clk 0:02:13]} 15. Qd2 {[%clk 0:02:33]}  Bc6 {[%clk 0:02:12]} 16. Rad1 {[%clk 0:02:33]}  Qh4 {[%clk 0:01:59]} 17. Bf3 {[%clk 0:02:20]}  Kh8 {[%clk 0:01:57]} 18. g3 {[%clk 0:02:12]}  Qf6 {[%clk 0:01:36]} 19. Qg2 {[%clk 0:02:11]}  Rc8 {[%clk 0:01:20]} 20. Rd2 {[%clk 0:02:01]}  a6 {[%clk 0:00:59]} 21. Rfd1 {[%clk 0:01:58]}  Qg6 {[%clk 0:00:54]} 22. Kf2 {[%clk 0:01:47]}  Rg8 {[%clk 0:00:51]} 23. Rxd6 {[%clk 0:01:32]}  Nxd6 {[%clk 0:00:48]} 24. Rxd6 {[%clk 0:01:33]}  Bxf3 {[%clk 0:00:45]} 25. Qxf3 {[%clk 0:01:32]}  Ng5 {[%clk 0:00:34]} 26. Qd5 {[%clk 0:01:22]}  Nh3+ {[%clk 0:00:30]} 27. Kg2 {[%clk 0:01:22]}  Qh5 {[%clk 0:00:31]} 28. Qf3 {[%clk 0:01:20]}  Qg4 {[%clk 0:00:26]} 29. Qxg4 {[%clk 0:01:17]}  fxg4 {[%clk 0:00:25]} 30. Nxc5 {[%clk 0:01:14]}  Rge8 {[%clk 0:00:21]} 31. Ne6 {[%clk 0:01:11]}  Rc6 {[%clk 0:00:17]} 32. Rxc6 {[%clk 0:01:10]}  bxc6 {[%clk 0:00:17]} 33. f5 {[%clk 0:01:10]}  Bf6 {[%clk 0:00:16]} 34. Ne4 {[%clk 0:01:09]}  Be5 {[%clk 0:00:12]} 35. b4 {[%clk 0:01:06]}  h5 {[%clk 0:00:11]} 36. a4 {[%clk 0:01:06]}  Kg8 {[%clk 0:00:11]} 37. b5 {[%clk 0:01:05]}  cxb5 {[%clk 0:00:11]} 38. cxb5 {[%clk 0:01:06]}  axb5 {[%clk 0:00:12]} 39. axb5 {[%clk 0:01:07]}  Rb8 {[%clk 0:00:12]} 40. b6 {[%clk 0:01:07]}  Kf7 {[%clk 0:00:08]} 41. Kf1 {[%clk 0:01:05]}  Bc3 {[%clk 0:00:06]} 42. Ke2 {[%clk 0:00:59]}  Ba5 {[%clk 0:00:06]} 43. Nd6+ {[%clk 0:00:59]}  Kf6 {[%clk 0:00:05]} 44. Nc4 {[%clk 0:00:58]}  Bb4 {[%clk 0:00:04]} 45. Nd4 {[%clk 0:00:57]}  Ng5 {[%clk 0:00:03]} 46. Nc6 {[%clk 0:00:56]}  Rb7 {[%clk 0:00:02]} 47. Bxg5+ {[%clk 0:00:54]}  Kxg5 {[%clk 0:00:02]} 48. Nxb4 {[%clk 0:00:55]}  Kxf5 {[%clk 0:00:02]} 49. Nc6 {[%clk 0:00:54]}  Ke6 {[%clk 0:00:02]} 50. Nd8+ {[%clk 0:00:54]} 1-0


[Site "https://www.chess.com"]

[Event "Titled Tuesday Blitz April 12 Early 2022"]
[White "Bettalli, Francesco"]
[Black "Dronavalli, Harika"]
[WhiteFideId "2816453"]
[BlackFideId "5015197"]
[WhiteElo "2216"]
[BlackElo "2382"]
[Result "1-0"]
[Round "07"]
[TimeControl "180+1"]
[Date "2022.04.13"]
[WhiteClock "0:00:49"]
[BlackClock "0:00:50"]

1. d4 {[%clk 0:03:00]}  Nf6 {[%clk 0:02:58]} 2. Nc3 {[%clk 0:03:01]}  g6 {[%clk 0:02:55]} 3. e4 {[%clk 0:03:00]}  d6 {[%clk 0:02:55]} 4. Bf4 {[%clk 0:03:00]}  a6 {[%clk 0:02:54]} 5. Qd2 {[%clk 0:02:52]}  b5 {[%clk 0:02:54]} 6. f3 {[%clk 0:02:46]}  Bb7 {[%clk 0:02:50]} 7. O-O-O {[%clk 0:02:42]}  Nbd7 {[%clk 0:02:49]} 8. g4 {[%clk 0:02:41]}  h5 {[%clk 0:02:49]} 9. g5 {[%clk 0:02:41]}  Nh7 {[%clk 0:02:49]} 10. Nge2 {[%clk 0:02:40]}  Bg7 {[%clk 0:02:49]} 11. h4 {[%clk 0:02:37]}  Nhf8 {[%clk 0:02:49]} 12. Be3 {[%clk 0:02:37]}  c5 {[%clk 0:02:37]} 13. Bg2 {[%clk 0:02:25]}  Qa5 {[%clk 0:02:31]} 14. Kb1 {[%clk 0:02:13]}  Ne6 {[%clk 0:02:28]} 15. f4 {[%clk 0:02:09]}  Rc8 {[%clk 0:01:59]} 16. f5 {[%clk 0:02:05]}  Nxd4 {[%clk 0:01:58]} 17. Nxd4 {[%clk 0:02:05]}  cxd4 {[%clk 0:01:58]} 18. Bxd4 {[%clk 0:02:06]}  Bxd4 {[%clk 0:01:46]} 19. Qxd4 {[%clk 0:02:07]}  Ne5 {[%clk 0:01:46]} 20. f6 {[%clk 0:02:07]}  b4 {[%clk 0:01:36]} 21. Ne2 {[%clk 0:01:38]}  Qc5 {[%clk 0:01:36]} 22. Qxc5 {[%clk 0:01:32]}  Rxc5 {[%clk 0:01:35]} 23. fxe7 {[%clk 0:01:32]}  Kxe7 {[%clk 0:01:34]} 24. c3 {[%clk 0:01:22]}  a5 {[%clk 0:01:31]} 25. Rd4 {[%clk 0:01:20]}  Ba6 {[%clk 0:01:29]} 26. cxb4 {[%clk 0:01:17]}  axb4 {[%clk 0:01:28]} 27. Nf4 {[%clk 0:01:16]}  Rhc8 {[%clk 0:01:23]} 28. Nd5+ {[%clk 0:01:01]}  Ke8 {[%clk 0:00:55]} 29. Nxb4 {[%clk 0:01:00]}  Nc4 {[%clk 0:00:51]} 30. Nxa6 {[%clk 0:00:56]}  Rb5 {[%clk 0:00:50]} 31. b3 {[%clk 0:00:52]}  Na3+ {[%clk 0:00:49]} 32. Kb2 {[%clk 0:00:50]}  Rc2+ {[%clk 0:00:49]} 33. Kxa3 {[%clk 0:00:50]}  Rxg2 {[%clk 0:00:50]} 34. Nc7+ {[%clk 0:00:49]} 1-0


[Site "https://www.chess.com"]

[Event "Titled Tuesday Blitz April 12 Early 2022"]
[White "Buscar, Michael"]
[Black "Politov, Pavel Y."]
[WhiteFideId "2603616"]
[BlackFideId "24110515"]
[WhiteElo "2010"]
[BlackElo "2090"]
[Result "1-0"]
[Round "07"]
[TimeControl "180+1"]
[Date "2022.04.13"]
[WhiteClock "0:00:15"]
[BlackClock "0:00:01"]

1. Nf3 {[%clk 0:02:59]}  d5 {[%clk 0:03:00]} 2. c4 {[%clk 0:02:58]}  dxc4 {[%clk 0:02:59]} 3. Qa4+ {[%clk 0:02:57]}  Nd7 {[%clk 0:02:49]} 4. Qxc4 {[%clk 0:02:57]}  e6 {[%clk 0:02:48]} 5. g3 {[%clk 0:02:55]}  Ngf6 {[%clk 0:02:46]} 6. Bg2 {[%clk 0:02:55]}  a6 {[%clk 0:02:44]} 7. O-O {[%clk 0:02:55]}  b5 {[%clk 0:02:40]} 8. Qc2 {[%clk 0:02:55]}  Bb7 {[%clk 0:02:38]} 9. d3 {[%clk 0:02:54]}  c5 {[%clk 0:02:34]} 10. Bf4 {[%clk 0:02:52]}  Nd5 {[%clk 0:02:28]} 11. a4 {[%clk 0:02:51]}  Nxf4 {[%clk 0:02:23]} 12. gxf4 {[%clk 0:02:50]}  Bd6 {[%clk 0:02:07]} 13. e3 {[%clk 0:02:50]}  O-O {[%clk 0:02:05]} 14. Nbd2 {[%clk 0:02:40]}  Nb6 {[%clk 0:01:55]} 15. Ne5 {[%clk 0:02:36]}  Bxg2 {[%clk 0:01:49]} 16. Kxg2 {[%clk 0:02:35]}  Bxe5 {[%clk 0:01:49]} 17. fxe5 {[%clk 0:02:34]}  Qg5+ {[%clk 0:01:43]} 18. Kh1 {[%clk 0:02:30]}  Qxe5 {[%clk 0:01:42]} 19. Rg1 {[%clk 0:02:21]}  Nxa4 {[%clk 0:01:37]} 20. b3 {[%clk 0:01:55]}  Nb6 {[%clk 0:01:27]} 21. Nf3 {[%clk 0:01:43]}  Qf6 {[%clk 0:01:25]} 22. Ng5 {[%clk 0:01:33]}  Rfc8 {[%clk 0:01:07]} 23. d4 {[%clk 0:01:24]}  Qg6 {[%clk 0:00:25]} 24. Ne4 {[%clk 0:01:10]}  cxd4 {[%clk 0:00:23]} 25. Qd3 {[%clk 0:00:41]}  Qf5 {[%clk 0:00:20]} 26. Qxd4 {[%clk 0:00:32]}  f6 {[%clk 0:00:11]} 27. Nxf6+ {[%clk 0:00:30]}  Kh8 {[%clk 0:00:09]} 28. Rxg7 {[%clk 0:00:21]}  Kxg7 {[%clk 0:00:03]} 29. Nh5+ {[%clk 0:00:17]}  Kf8 {[%clk 0:00:02]} 30. Qg7+ {[%clk 0:00:15]}  Ke8 {[%clk 0:00:01]} 31. Nf6+ {[%clk 0:00:15]} 1-0


[Site "https://www.chess.com"]

[Event "Titled Tuesday Blitz April 12 Early 2022"]
[White "Butti, Enrique"]
[Black "Almeida Junior, Alvaro Alves de"]
[WhiteFideId "3700470"]
[BlackFideId "2149974"]
[WhiteElo "2080"]
[BlackElo "2086"]
[Result "0-1"]
[Round "07"]
[TimeControl "180+1"]
[Date "2022.04.13"]
[WhiteClock "0:00:50"]
[BlackClock "0:00:04"]

1. d4 {[%clk 0:03:00]}  Nf6 {[%clk 0:02:56]} 2. Nf3 {[%clk 0:02:59]}  d5 {[%clk 0:02:55]} 3. c4 {[%clk 0:02:58]}  e6 {[%clk 0:02:51]} 4. e3 {[%clk 0:02:57]}  Be7 {[%clk 0:02:51]} 5. Nc3 {[%clk 0:02:56]}  O-O {[%clk 0:02:51]} 6. b3 {[%clk 0:02:55]}  b6 {[%clk 0:02:51]} 7. Bb2 {[%clk 0:02:55]}  Bb7 {[%clk 0:02:50]} 8. Bd3 {[%clk 0:02:54]}  Nbd7 {[%clk 0:02:50]} 9. O-O {[%clk 0:02:54]}  c5 {[%clk 0:02:50]} 10. Qe2 {[%clk 0:02:53]}  Rc8 {[%clk 0:02:49]} 11. Rad1 {[%clk 0:02:52]}  Qc7 {[%clk 0:02:47]} 12. Ne5 {[%clk 0:02:49]}  dxc4 {[%clk 0:02:33]} 13. bxc4 {[%clk 0:02:47]}  Nxe5 {[%clk 0:01:40]} 14. dxe5 {[%clk 0:02:45]}  Nd7 {[%clk 0:01:20]} 15. f4 {[%clk 0:02:43]}  Rfd8 {[%clk 0:01:12]} 16. e4 {[%clk 0:02:40]}  a6 {[%clk 0:00:57]} 17. Nd5 {[%clk 0:02:38]}  exd5 {[%clk 0:00:38]} 18. exd5 {[%clk 0:02:37]}  Nf8 {[%clk 0:00:33]} 19. f5 {[%clk 0:02:27]}  f6 {[%clk 0:00:27]} 20. Rf3 {[%clk 0:01:58]}  fxe5 {[%clk 0:00:25]} 21. Bxe5 {[%clk 0:01:57]}  Bd6 {[%clk 0:00:25]} 22. Bb2 {[%clk 0:01:53]}  Re8 {[%clk 0:00:20]} 23. Re3 {[%clk 0:01:51]}  Bxh2+ {[%clk 0:00:14]} 24. Kh1 {[%clk 0:01:48]}  Rxe3 {[%clk 0:00:14]} 25. Qxe3 {[%clk 0:01:47]}  Qg3 {[%clk 0:00:14]} 26. Qe7 {[%clk 0:01:43]}  Qc7 {[%clk 0:00:11]} 27. Qg5 {[%clk 0:01:35]}  Bf4 {[%clk 0:00:09]} 28. Qg4 {[%clk 0:01:31]}  Bh6 {[%clk 0:00:06]} 29. f6 {[%clk 0:01:25]}  Qf4 {[%clk 0:00:04]} 30. f7+ {[%clk 0:01:18]}  Qxf7 {[%clk 0:00:02]} 31. Rf1 {[%clk 0:01:14]}  Qe7 {[%clk 0:00:02]} 32. Qf5 {[%clk 0:01:10]}  Ng6 {[%clk 0:00:03]} 33. Qe6+ {[%clk 0:01:08]}  Qxe6 {[%clk 0:00:03]} 34. dxe6 {[%clk 0:01:07]}  Re8 {[%clk 0:00:04]} 35. Bf5 {[%clk 0:01:06]}  Bc8 {[%clk 0:00:04]} 36. Re1 {[%clk 0:01:04]}  Nf8 {[%clk 0:00:04]} 37. g4 {[%clk 0:01:03]}  Bxe6 {[%clk 0:00:04]} 38. Rd1 {[%clk 0:00:59]}  Bxf5 {[%clk 0:00:04]} 39. gxf5 {[%clk 0:00:58]}  Bf4 {[%clk 0:00:04]} 40. Rd7 {[%clk 0:00:57]}  Nxd7 {[%clk 0:00:04]} 41. Kg2 {[%clk 0:00:54]}  Be5 {[%clk 0:00:04]} 42. Bc1 {[%clk 0:00:53]}  Bd4 {[%clk 0:00:04]} 43. Bf4 {[%clk 0:00:52]}  Nf6 {[%clk 0:00:04]} 44. Bc7 {[%clk 0:00:51]}  b5 {[%clk 0:00:04]} 45. cxb5 {[%clk 0:00:51]}  axb5 {[%clk 0:00:04]} 46. Bb6 {[%clk 0:00:50]}  Rb8 {[%clk 0:00:04]} 0-1


[Site "https://www.chess.com"]